Workbook

Sheet Control
G1: 2011-2012 ICS3U: Mandelbrot Trigonometric Palette Planner
H2: C. D'Arcy. May 20, 2012
C3: Red | F3: Green | I3: Blue
B4: Amplitude | D4: 125 | G4: 125 | J4: 125
B5: V. Trans. | D5: 150 | G5: 150 | J5: 150
B6: Period | D6: 256 | G6: 256 | J6: 255
B7: Phase | D7: 1 | G7: 0 | J7: 0
D9: Red | G9: Green | J9: Blue
B10: Amplitude | D10: =(Control!D4-100)/50 -> 0.5 | G10: =(G4-100)/50 -> 0.5 | J10: =(J4-100)/50 -> 0.5
B11: V. Trans. | D11: =(D5-100)/100 -> 0.5 | G11: =(G5-100)/100 -> 0.5 | J11: =(J5-100)/100 -> 0.5
B12: Period | D12: =D6 -> 256 | G12: =G6 -> 256 | J12: =J6 -> 255
B13: Phase | D13: =D7/100 -> 0.01 | G13: =G7/100 -> 0 | J13: =J7/100 -> 0
B15: Iterations | D15: Red | G15: Green | J15: Blue | L15: COLOUR RAMP
B16: 0 | D16: =$D$10*SIN(2*PI()/$D$12*$B16+$D$13)+$D$11 -> 0.5049999167 | G16: =$G$10*SIN(2*PI()/$G$12*$B16+$G$13)+$G$11 -> 0.5 | J16: =$J$10*SIN(2*PI()/$J$12*$B16+$J$13)+$J$11 -> 0.5
B17: 1 | D17: =$D$10*SIN(2*PI()/$D$12*$B17+$D$13)+$D$11 -> 0.5172684115 | G17: =$G$10*SIN(2*PI()/$G$12*$B17+$G$13)+$G$11 -> 0.5122706143 | J17: =$J$10*SIN(2*PI()/$J$12*$B17+$J$13)+$J$11 -> 0.5123187246
B18: 2 | D18: 0.5295265045 | G18: 0.5245338372 | J18: 0.5246299705
B19: 3 | D19: 0.5417668119 | G19: 0.5367822818 | J19: 0.5369262637
B20: 4 | D20: 0.5539819605 | G20: 0.5490085702 | J20: 0.5492001391
B21: 5 | D21: 0.5661645923 | G21: 0.5612053376 | J21: 0.5614441453
B22: 6 | D22: 0.5783073691 | G22: 0.5733652372 | J22: 0.573650849
B23: 7 | D23: 0.5904029765 | G23: 0.5854809444 | J23: 0.5858128396
B24: 8 | D24: 0.6024441285 | G24: 0.597545161 | J24: 0.5979227335
B25: 9 | D25: 0.6144235719 | G25: 0.6095506201 | J25: 0.6099731789
B26: 10 | D26: 0.6263340909 | G26: 0.62149009 | J26: 0.6219568601
B27: 11 | D27: 0.638168511 | G27: 0.6333563787 | J27: 0.6338665017
B28: 12 | D28: 0.6499197035 | G28: 0.6451423386 | J28: 0.6456948734
B29: 13 | D29: 0.66158059 | G29: 0.6568408702 | J29: 0.6574347944
B30: 14 | D30: 0.6731441464 | G30: 0.6684449267 | J30: 0.6690791374
B31: 15 | D31: 0.6846034072 | G31: 0.6799475183 | J31: 0.6806208331
B32: 16 | D32: 0.6959514698 | G32: 0.6913417162 | J32: 0.6920528746
B33: 17 | D33: 0.7071814986 | G33: 0.702620657 | J33: 0.7033683215
B34: 18 | D34: 0.7182867291 | G34: 0.7137775467 | J34: 0.7145603044
B35: 19 | D35: 0.7292604717 | G35: 0.7248056648 | J35: 0.7256220285
B36: 20 | D36: 0.7400961164 | G36: 0.7356983684 | J36: 0.7365467784
B37: 21 | D37: 0.7507871362 | G37: 0.7464490961 | J37: 0.7473279217
B38: 22 | D38: 0.7613270912 | G38: 0.7570513721 | J38: 0.7579589132
B39: 23 | D39: 0.7717096325 | G39: 0.7674988099 | J39: 0.7684332988
B40: 24 | D40: 0.7819285061 | G40: 0.7777851165 | J40: 0.7787447197
B41: 25 | D41: 0.7919775566 | G41: 0.7879040957 | J41: 0.7888869157
B42: 26 | D42: 0.8018507306 | G42: 0.7978496522 | J42: 0.7988537296
B43: 27 | D43: 0.8115420811 | G43: 0.8076157953 | J43: 0.8086391106
B44: 28 | D44: 0.8210457702 | G44: 0.8171966421 | J44: 0.8182371181
B45: 29 | D45: 0.8303560734 | G45: 0.8265864215 | J45: 0.827641925
B46: 30 | D46: 0.8394673825 | G46: 0.8357794774 | J46: 0.8368478218
B47: 31 | D47: 0.8483742091 | G47: 0.8447702724 | J47: 0.8458492197
B48: 32 | D48: 0.8570711881 | G48: 0.8535533906 | J48: 0.8546406538
B49: 33 | D49: 0.8655530807 | G49: 0.8621235415 | J49: 0.863216787
B50: 34 | D50: 0.8738147779 | G50: 0.8704755627 | J50: 0.8715724127
B51: 35 | D51: 0.881851303 | G51: 0.8786044233 | J51: 0.8797024583
B52: 36 | D52: 0.8896578151 | G52: 0.8865052267 | J52: 0.8876019881
B53: 37 | D53: 0.897229612 | G53: 0.8941732138 | J53: 0.8952662062
B54: 38 | D54: 0.9045621326 | G54: 0.9016037657 | J54: 0.9026904597
B55: 39 | D55: 0.9116509601 | G55: 0.9087924066 | J55: 0.9098702415
B56: 40 | D56: 0.9184918245 | G56: 0.9157348062 | J56: 0.9168011926
B57: 41 | D57: 0.925080605 | G57: 0.9224267826 | J57: 0.9234791054
B58: 42 | D58: 0.9314133328 | G58: 0.928864305 | J58: 0.9298999257
B59: 43 | D59: 0.9374861934 | G59: 0.9350434956 | J59: 0.9360597555
B60: 44 | D60: 0.9432955287 | G60: 0.9409606322 | J60: 0.9419548551
B61: 45 | D61: 0.9488378394 | G61: 0.9466121506 | J61: 0.9475816457
B62: 46 | D62: 0.9541097869 | G62: 0.9519946466 | J62: 0.9529367112
B63: 47 | D63: 0.9591081956 | G63: 0.9571048779 | J63: 0.9580168006
B64: 48 | D64: 0.9638300547 | G64: 0.9619397663 | J64: 0.9628188299
B65: 49 | D65: 0.96827252 | G65: 0.9664963994 | J65: 0.9673398837
B66: 50 | D66: 0.9724329154 | G66: 0.9707720326 | J66: 0.9715772172
B67: 51 | D67: 0.9763087349 | G67: 0.9747640903 | J67: 0.9755282581
B68: 52 | D68: 0.9798976438 | G68: 0.9784701679 | J68: 0.9791906077
B69: 53 | D69: 0.9831974803 | G69: 0.9818880329 | J69: 0.9825620426
B70: 54 | D70: 0.9862062567 | G70: 0.9850156266 | J70: 0.985640516
B71: 55 | D71: 0.9889221606 | G71: 0.987851065 | J71: 0.9884241589
B72: 56 | D72: 0.9913435561 | G72: 0.9903926402 | J72: 0.9909112814
B73: 57 | D73: 0.9934689847 | G73: 0.9926388212 | J73: 0.9931003737
B74: 58 | D74: 0.9952971659 | G74: 0.994588255 | J74: 0.9949901066
B75: 59 | D75: 0.9968269987 | G75: 0.9962397673 | J75: 0.9965793331
B76: 60 | D76: 0.9980575615 | G76: 0.9975923633 | J76: 0.9978670881
B77: 61 | D77: 0.998988113 | G77: 0.9986452283 | J77: 0.9988525901
B78: 62 | D78: 0.9996180927 | G78: 0.9993977281 | J78: 0.9995352406
B79: 63 | D79: 0.9999471212 | G79: 0.9998494093 | J79: 0.9999146252
B80: 64 | D80: 0.9999750002 | G80: 1 | J80: 0.9999905137
B81: 65 | D81: =$D$10*SIN(2*PI()/$D$12*$B81+$D$13)+$D$11 -> 0.999701713 | G81: =$G$10*SIN(2*PI()/$G$12*$B81+$G$13)+$G$11 -> 0.9998494093 | J81: =$J$10*SIN(2*PI()/$J$12*$B81+$J$13)+$J$11 -> 0.9997628599
B82: 66 | D82: 0.9991274241 | G82: 0.9993977281 | J82: 0.999231802
B83: 67 | D83: 0.9982524796 | G83: 0.9986452283 | J83: 0.9983976625
B84: 68 | D84: 0.9970774064 | G84: 0.9975923633 | J84: 0.9972609477
B85: 69 | D85: 0.9956029123 | G85: 0.9962397673 | J85: 0.9958223478
B86: 70 | D86: 0.9938298856 | G86: 0.994588255 | J86: 0.994082736
B87: 71 | D87: 0.9917593943 | G87: 0.9926388212 | J87: 0.9920431687
B88: 72 | D88: 0.9893926854 | G88: 0.9903926402 | J88: 0.9897048838
B89: 73 | D89: 0.9867311847 | G89: 0.987851065 | J89: 0.9870693011
B90: 74 | D90: 0.9837764954 | G90: 0.9850156266 | J90: 0.9841380205
B91: 75 | D91: 0.9805303971 | G91: 0.9818880329 | J91: 0.9809128216
B92: 76 | D92: 0.9769948454 | G92: 0.9784701679 | J92: 0.9773956624
B93: 77 | D93: 0.9731719697 | G93: 0.9747640903 | J93: 0.9735886783
B94: 78 | D94: 0.969064073 | G94: 0.9707720326 | J94: 0.9694941803
B95: 79 | D95: 0.9646736296 | G95: 0.9664963994 | J95: 0.9651146543
B96: 80 | D96: 0.9600032842 | G96: 0.9619397663 | J96: 0.960452759
B97: 81 | D97: 0.95505585 | G97: 0.9571048779 | J97: 0.9555113246
B98: 82 | D98: 0.9498343072 | G98: 0.9519946466 | J98: 0.9502933512
B99: 83 | D99: 0.944341801 | G99: 0.9466121506 | J99: 0.9448020064
B100: 84 | D100: 0.9385816399 | G100: 0.9409606322 | J100: 0.939040624
B101: 85 | D101: 0.9325572937 | G101: 0.9350434956 | J101: 0.9330127019
B102: 86 | D102: 0.9262723911 | G102: 0.928864305 | J102: 0.9267218994
B103: 87 | D103: 0.9197307179 | G103: 0.9224267826 | J103: 0.9201720358
B104: 88 | D104: 0.9129362147 | G104: 0.9157348062 | J104: 0.9133670874
B105: 89 | D105: 0.9058929742 | G105: 0.9087924066 | J105: 0.9063111855
B106: 90 | D106: 0.8986052388 | G106: 0.9016037657 | J106: 0.8990086136
B107: 91 | D107: 0.8910773986 | G107: 0.8941732138 | J107: 0.8914638052
B108: 92 | D108: 0.883313988 | G108: 0.8865052267 | J108: 0.8836813407
B109: 93 | D109: 0.8753196834 | G109: 0.8786044233 | J109: 0.8756659448
B110: 94 | D110: 0.8670993002 | G110: 0.8704755627 | J110: 0.8674224835
B111: 95 | D111: 0.8586577902 | G111: 0.8621235415 | J111: 0.8589559615
B112: 96 | D112: 0.8500002381 | G112: 0.8535533906 | J112: 0.8502715188
B113: 97 | D113: 0.8411318589 | G113: 0.8447702724 | J113: 0.8413744276
B114: 98 | D114: 0.8320579947 | G114: 0.8357794774 | J114: 0.8322700894
B115: 99 | D115: 0.8227841112 | G115: 0.8265864215 | J115: 0.8229640312
B116: 100 | D116: 0.8133157945 | G116: 0.8171966421 | J116: 0.8134619029
B117: 101 | D117: 0.8036587482 | G117: 0.8076157953 | J117: 0.8037694732
B118: 102 | D118: 0.7938187892 | G118: 0.7978496522 | J118: 0.7938926261
B119: 103 | D119: 0.7838018447 | G119: 0.7879040957 | J119: 0.7838373581
B120: 104 | D120: 0.7736139486 | G120: 0.7777851165 | J120: 0.7736097735
B121: 105 | D121: 0.7632612377 | G121: 0.7674988099 | J121: 0.7632160814
B122: 106 | D122: 0.7527499481 | G122: 0.7570513721 | J122: 0.752662592
B123: 107 | D123: 0.7420864113 | G123: 0.7464490961 | J123: 0.7419557121
B124: 108 | D124: 0.7312770508 | G124: 0.7356983684 | J124: 0.7311019418
B125: 109 | D125: 0.7203283776 | G125: 0.7248056648 | J125: 0.7201078704
B126: 110 | D126: 0.7092469868 | G126: 0.7137775467 | J126: 0.7089801724
B127: 111 | D127: 0.6980395535 | G127: 0.702620657 | J127: 0.6977256034
B128: 112 | D128: 0.6867128285 | G128: 0.6913417162 | J128: 0.686350996
B129: 113 | D129: 0.6752736347 | G129: 0.6799475183 | J129: 0.6748632556
B130: 114 | D130: 0.6637288627 | G130: 0.6684449267 | J130: 0.6632693564
B131: 115 | D131: 0.6520854664 | G131: 0.6568408702 | J131: 0.6515763371
B132: 116 | D132: 0.6403504596 | G132: 0.6451423386 | J132: 0.6397912963
B133: 117 | D133: 0.628530911 | G133: 0.6333563787 | J133: 0.6279213888
B134: 118 | D134: 0.6166339401 | G134: 0.62149009 | J134: 0.6159738207
B135: 119 | D135: 0.6046667133 | G135: 0.6095506201 | J135: 0.6039558454
B136: 120 | D136: 0.5926364391 | G136: 0.597545161 | J136: 0.5918747589
B137: 121 | D137: 0.5805503643 | G137: 0.5854809444 | J137: 0.5797378956
B138: 122 | D138: 0.5684157689 | G138: 0.5733652372 | J138: 0.5675526237
B139: 123 | D139: 0.5562399624 | G139: 0.5612053376 | J139: 0.5553263409
B140: 124 | D140: 0.5440302791 | G140: 0.5490085702 | J140: 0.5430664697
B141: 125 | D141: 0.5317940735 | G141: 0.5367822818 | J141: 0.5307804531
B142: 126 | D142: 0.5195387164 | G142: 0.5245338372 | J142: 0.5184757497
B143: 127 | D143: 0.50727159 | G143: 0.5122706143 | J143: 0.5061598298
B144: 128 | D144: 0.4950000833 | G144: 0.5 | J144: 0.4938401702
B145: 129 | D145: =$D$10*SIN(2*PI()/$D$12*$B145+$D$13)+$D$11 -> 0.4827315885 | G145: =$G$10*SIN(2*PI()/$G$12*$B145+$G$13)+$G$11 -> 0.4877293857 | J145: =$J$10*SIN(2*PI()/$J$12*$B145+$J$13)+$J$11 -> 0.4815242503
B146: 130 | D146: 0.4704734955 | G146: 0.4754661628 | J146: 0.4692195469
B147: 131 | D147: 0.4582331881 | G147: 0.4632177182 | J147: 0.4569335303
B148: 132 | D148: 0.4460180395 | G148: 0.4509914298 | J148: 0.4446736591
B149: 133 | D149: 0.4338354077 | G149: 0.4387946624 | J149: 0.4324473763
B150: 134 | D150: 0.4216926309 | G150: 0.4266347628 | J150: 0.4202621044
B151: 135 | D151: 0.4095970235 | G151: 0.4145190556 | J151: 0.4081252411
B152: 136 | D152: 0.3975558715 | G152: 0.402454839 | J152: 0.3960441546
B153: 137 | D153: 0.3855764281 | G153: 0.3904493799 | J153: 0.3840261793
B154: 138 | D154: 0.3736659091 | G154: 0.37850991 | J154: 0.3720786112
B155: 139 | D155: 0.361831489 | G155: 0.3666436213 | J155: 0.3602087037
B156: 140 | D156: 0.3500802965 | G156: 0.3548576614 | J156: 0.3484236629
B157: 141 | D157: 0.33841941 | G157: 0.3431591298 | J157: 0.3367306436
B158: 142 | D158: 0.3268558536 | G158: 0.3315550733 | J158: 0.3251367444
B159: 143 | D159: 0.3153965928 | G159: 0.3200524817 | J159: 0.313649004
B160: 144 | D160: 0.3040485302 | G160: 0.3086582838 | J160: 0.3022743966
B161: 145 | D161: 0.2928185014 | G161: 0.297379343 | J161: 0.2910198276
B162: 146 | D162: 0.2817132709 | G162: 0.2862224533 | J162: 0.2798921296
B163: 147 | D163: 0.2707395283 | G163: 0.2751943352 | J163: 0.2688980582
B164: 148 | D164: 0.2599038836 | G164: 0.2643016316 | J164: 0.2580442879
B165: 149 | D165: 0.2492128638 | G165: 0.2535509039 | J165: 0.247337408
B166: 150 | D166: 0.2386729088 | G166: 0.2429486279 | J166: 0.2367839186
B167: 151 | D167: 0.2282903675 | G167: 0.2325011901 | J167: 0.2263902265
B168: 152 | D168: 0.2180714939 | G168: 0.2222148835 | J168: 0.2161626419
B169: 153 | D169: 0.2080224434 | G169: 0.2120959043 | J169: 0.2061073739
B170: 154 | D170: 0.1981492694 | G170: 0.2021503478 | J170: 0.1962305268
B171: 155 | D171: 0.1884579189 | G171: 0.1923842047 | J171: 0.1865380971
B172: 156 | D172: 0.1789542298 | G172: 0.1828033579 | J172: 0.1770359688
B173: 157 | D173: 0.1696439266 | G173: 0.1734135785 | J173: 0.1677299106
B174: 158 | D174: 0.1605326175 | G174: 0.1642205226 | J174: 0.1586255724
B175: 159 | D175: 0.1516257909 | G175: 0.1552297276 | J175: 0.1497284812
B176: 160 | D176: 0.1429288119 | G176: 0.1464466094 | J176: 0.1410440385
B177: 161 | D177: 0.1344469193 | G177: 0.1378764585 | J177: 0.1325775165
B178: 162 | D178: 0.1261852221 | G178: 0.1295244373 | J178: 0.1243340552
B179: 163 | D179: 0.118148697 | G179: 0.1213955767 | J179: 0.1163186593
B180: 164 | D180: 0.1103421849 | G180: 0.1134947733 | J180: 0.1085361948
B181: 165 | D181: 0.102770388 | G181: 0.1058267862 | J181: 0.1009913864
B182: 166 | D182: 0.0954378674 | G182: 0.09839623426 | J182: 0.09368881452
B183: 167 | D183: 0.0883490399 | G183: 0.09120759342 | J183: 0.08663291259
B184: 168 | D184: 0.08150817555 | G184: 0.08426519385 | J184: 0.07982796418
B185: 169 | D185: 0.07491939502 | G185: 0.07757321738 | J185: 0.07327810056
B186: 170 | D186: 0.06858666716 | G186: 0.071135695 | J186: 0.06698729811
B187: 171 | D187: 0.06251380655 | G187: 0.06495650445 | J187: 0.06095937596
B188: 172 | D188: 0.05670447127 | G188: 0.05903936783 | J188: 0.05519799363
B189: 173 | D189: 0.05116216064 | G189: 0.0533878494 | J189: 0.04970664885
B190: 174 | D190: 0.04589021314 | G190: 0.04800535344 | J190: 0.04448867538
B191: 175 | D191: 0.0408918044 | G191: 0.04289512215 | J191: 0.03954724103
B192: 176 | D192: 0.03616994527 | G192: 0.03806023374 | J192: 0.03488534573
B193: 177 | D193: 0.03172748002 | G193: 0.03350360058 | J193: 0.03050581969
B194: 178 | D194: 0.02756708462 | G194: 0.02922796741 | J194: 0.02641132172
B195: 179 | D195: 0.02369126515 | G195: 0.0252359097 | J195: 0.02260433756
B196: 180 | D196: 0.02010235625 | G196: 0.02152983213 | J196: 0.01908717841
B197: 181 | D197: 0.01680251974 | G197: 0.0181119671 | J197: 0.01586197954
B198: 182 | D198: 0.01379374333 | G198: 0.0149843734 | J198: 0.01293069895
B199: 183 | D199: 0.01107783939 | G199: 0.01214893498 | J199: 0.0102951162
B200: 184 | D200: 0.008656443873 | G200: 0.009607359798 | J200: 0.007956831349
B201: 185 | D201: 0.006531015344 | G201: 0.007361178806 | J201: 0.005917263959
B202: 186 | D202: 0.004702834079 | G202: 0.005411745018 | J202: 0.004177652245
... 70 more rows

Sheet Data
B1: Red | C1: Green | D1: Blue
A2: Amplitude | B2: =(Control!D4-100)/50 -> 0.5 | C2: 0.5 | D2: 0.5
A3: V. Trans. | B3: 0.5 | C3: 0.5 | D3: 0.5
A4: Period | B4: =Control!D12 -> 256 | C4: =Control!G12 -> 256 | D4: =Control!J12 -> 255
A5: Phase | B5: =Control!D13 -> 0.01 | C5: =Control!G13 -> 0 | D5: =Control!J13 -> 0
A7: Iterations | B7: Red | C7: Green | D7: Blue | F7: Red | G7: Green | H7: Blue
A8: 0 | B8: =$B$2*SIN(2*PI()/$B$4*$A8+$B$5)+$B$3 -> 0.5049999167 | C8: =$C$2*SIN(2*PI()/$C$4*$A8+$C$5)+$C$3 -> 0.5 | D8: =$D$2*SIN(2*PI()/$D$4*$A8+$D$5)+$D$3 -> 0.5 | F8: =TRUNC(B8*256) -> 129 | G8: =TRUNC(C8*256) -> 128 | H8: 128
A9: 1 | B9: =$B$2*SIN(2*PI()/$B$4*$A9+$B$5)+$B$3 -> 0.5172684115 | C9: =$C$2*SIN(2*PI()/$C$4*$A9+$C$5)+$C$3 -> 0.5122706143 | D9: =$D$2*SIN(2*PI()/$D$4*$A9+$D$5)+$D$3 -> 0.5123187246 | F9: =TRUNC(B9*256) -> 132 | G9: =TRUNC(C9*256) -> 131 | H9: =TRUNC(D9*256) -> 131
A10: 2 | B10: 0.5295265045 | C10: 0.5245338372 | D10: 0.5246299705 | F10: 135 | G10: 134 | H10: 134
A11: 3 | B11: 0.5417668119 | C11: 0.5367822818 | D11: 0.5369262637 | F11: 138 | G11: 137 | H11: 137
A12: 4 | B12: 0.5539819605 | C12: 0.5490085702 | D12: 0.5492001391 | F12: 141 | G12: =TRUNC(C12*256) -> 140 | H12: =TRUNC(D12*256) -> 140
A13: 5 | B13: 0.5661645923 | C13: 0.5612053376 | D13: 0.5614441453 | F13: 144 | G13: 143 | H13: 143
A14: 6 | B14: 0.5783073691 | C14: 0.5733652372 | D14: 0.573650849 | F14: 148 | G14: 146 | H14: 146
A15: 7 | B15: 0.5904029765 | C15: 0.5854809444 | D15: 0.5858128396 | F15: 151 | G15: 149 | H15: 149
A16: 8 | B16: 0.6024441285 | C16: 0.597545161 | D16: 0.5979227335 | F16: 154 | G16: 152 | H16: 153
A17: 9 | B17: 0.6144235719 | C17: 0.6095506201 | D17: 0.6099731789 | F17: 157 | G17: 156 | H17: 156
A18: 10 | B18: 0.6263340909 | C18: 0.62149009 | D18: 0.6219568601 | F18: 160 | G18: 159 | H18: 159
A19: 11 | B19: 0.638168511 | C19: 0.6333563787 | D19: 0.6338665017 | F19: 163 | G19: 162 | H19: 162
A20: 12 | B20: 0.6499197035 | C20: 0.6451423386 | D20: 0.6456948734 | F20: 166 | G20: 165 | H20: 165
A21: 13 | B21: 0.66158059 | C21: 0.6568408702 | D21: 0.6574347944 | F21: 169 | G21: 168 | H21: 168
A22: 14 | B22: 0.6731441464 | C22: 0.6684449267 | D22: 0.6690791374 | F22: 172 | G22: 171 | H22: 171
A23: 15 | B23: 0.6846034072 | C23: 0.6799475183 | D23: 0.6806208331 | F23: 175 | G23: 174 | H23: 174
A24: 16 | B24: 0.6959514698 | C24: 0.6913417162 | D24: 0.6920528746 | F24: 178 | G24: 176 | H24: 177
A25: 17 | B25: 0.7071814986 | C25: 0.702620657 | D25: 0.7033683215 | F25: 181 | G25: 179 | H25: 180
A26: 18 | B26: 0.7182867291 | C26: 0.7137775467 | D26: 0.7145603044 | F26: 183 | G26: 182 | H26: 182
A27: 19 | B27: 0.7292604717 | C27: 0.7248056648 | D27: 0.7256220285 | F27: 186 | G27: 185 | H27: 185
A28: 20 | B28: 0.7400961164 | C28: 0.7356983684 | D28: 0.7365467784 | F28: 189 | G28: 188 | H28: 188
A29: 21 | B29: 0.7507871362 | C29: 0.7464490961 | D29: 0.7473279217 | F29: 192 | G29: 191 | H29: 191
A30: 22 | B30: 0.7613270912 | C30: 0.7570513721 | D30: 0.7579589132 | F30: 194 | G30: 193 | H30: 194
A31: 23 | B31: 0.7717096325 | C31: 0.7674988099 | D31: 0.7684332988 | F31: 197 | G31: 196 | H31: 196
A32: 24 | B32: 0.7819285061 | C32: 0.7777851165 | D32: 0.7787447197 | F32: 200 | G32: 199 | H32: 199
A33: 25 | B33: 0.7919775566 | C33: 0.7879040957 | D33: 0.7888869157 | F33: 202 | G33: 201 | H33: 201
A34: 26 | B34: 0.8018507306 | C34: 0.7978496522 | D34: 0.7988537296 | F34: 205 | G34: 204 | H34: 204
A35: 27 | B35: 0.8115420811 | C35: 0.8076157953 | D35: 0.8086391106 | F35: 207 | G35: 206 | H35: 207
A36: 28 | B36: 0.8210457702 | C36: 0.8171966421 | D36: 0.8182371181 | F36: 210 | G36: 209 | H36: 209
A37: 29 | B37: 0.8303560734 | C37: 0.8265864215 | D37: 0.827641925 | F37: 212 | G37: 211 | H37: 211
A38: 30 | B38: 0.8394673825 | C38: 0.8357794774 | D38: 0.8368478218 | F38: 214 | G38: 213 | H38: 214
A39: 31 | B39: 0.8483742091 | C39: 0.8447702724 | D39: 0.8458492197 | F39: 217 | G39: 216 | H39: 216
A40: 32 | B40: 0.8570711881 | C40: 0.8535533906 | D40: 0.8546406538 | F40: 219 | G40: 218 | H40: 218
A41: 33 | B41: 0.8655530807 | C41: 0.8621235415 | D41: 0.863216787 | F41: 221 | G41: 220 | H41: 220
A42: 34 | B42: 0.8738147779 | C42: 0.8704755627 | D42: 0.8715724127 | F42: 223 | G42: 222 | H42: 223
A43: 35 | B43: 0.881851303 | C43: 0.8786044233 | D43: 0.8797024583 | F43: 225 | G43: 224 | H43: 225
A44: 36 | B44: 0.8896578151 | C44: 0.8865052267 | D44: 0.8876019881 | F44: 227 | G44: 226 | H44: 227
A45: 37 | B45: 0.897229612 | C45: 0.8941732138 | D45: 0.8952662062 | F45: 229 | G45: 228 | H45: 229
A46: 38 | B46: 0.9045621326 | C46: 0.9016037657 | D46: 0.9026904597 | F46: 231 | G46: 230 | H46: 231
A47: 39 | B47: 0.9116509601 | C47: 0.9087924066 | D47: 0.9098702415 | F47: 233 | G47: 232 | H47: 232
A48: 40 | B48: 0.9184918245 | C48: 0.9157348062 | D48: 0.9168011926 | F48: 235 | G48: 234 | H48: 234
A49: 41 | B49: 0.925080605 | C49: 0.9224267826 | D49: 0.9234791054 | F49: 236 | G49: 236 | H49: 236
A50: 42 | B50: 0.9314133328 | C50: 0.928864305 | D50: 0.9298999257 | F50: 238 | G50: 237 | H50: 238
A51: 43 | B51: 0.9374861934 | C51: 0.9350434956 | D51: 0.9360597555 | F51: 239 | G51: 239 | H51: 239
A52: 44 | B52: 0.9432955287 | C52: 0.9409606322 | D52: 0.9419548551 | F52: 241 | G52: 240 | H52: 241
A53: 45 | B53: 0.9488378394 | C53: 0.9466121506 | D53: 0.9475816457 | F53: 242 | G53: 242 | H53: 242
A54: 46 | B54: 0.9541097869 | C54: 0.9519946466 | D54: 0.9529367112 | F54: 244 | G54: 243 | H54: 243
A55: 47 | B55: 0.9591081956 | C55: 0.9571048779 | D55: 0.9580168006 | F55: 245 | G55: 245 | H55: 245
A56: 48 | B56: 0.9638300547 | C56: 0.9619397663 | D56: 0.9628188299 | F56: 246 | G56: 246 | H56: 246
A57: 49 | B57: 0.96827252 | C57: 0.9664963994 | D57: 0.9673398837 | F57: 247 | G57: 247 | H57: 247
A58: 50 | B58: 0.9724329154 | C58: 0.9707720326 | D58: 0.9715772172 | F58: 248 | G58: 248 | H58: 248
A59: 51 | B59: 0.9763087349 | C59: 0.9747640903 | D59: 0.9755282581 | F59: 249 | G59: 249 | H59: 249
A60: 52 | B60: 0.9798976438 | C60: 0.9784701679 | D60: 0.9791906077 | F60: 250 | G60: 250 | H60: 250
A61: 53 | B61: 0.9831974803 | C61: 0.9818880329 | D61: 0.9825620426 | F61: 251 | G61: 251 | H61: 251
A62: 54 | B62: 0.9862062567 | C62: 0.9850156266 | D62: 0.985640516 | F62: 252 | G62: 252 | H62: 252
A63: 55 | B63: 0.9889221606 | C63: 0.987851065 | D63: 0.9884241589 | F63: 253 | G63: 252 | H63: 253
A64: 56 | B64: 0.9913435561 | C64: 0.9903926402 | D64: 0.9909112814 | F64: 253 | G64: 253 | H64: 253
A65: 57 | B65: 0.9934689847 | C65: 0.9926388212 | D65: 0.9931003737 | F65: 254 | G65: 254 | H65: 254
A66: 58 | B66: 0.9952971659 | C66: 0.994588255 | D66: 0.9949901066 | F66: 254 | G66: 254 | H66: 254
A67: 59 | B67: 0.9968269987 | C67: 0.9962397673 | D67: 0.9965793331 | F67: 255 | G67: 255 | H67: 255
A68: 60 | B68: 0.9980575615 | C68: 0.9975923633 | D68: 0.9978670881 | F68: 255 | G68: 255 | H68: 255
A69: 61 | B69: 0.998988113 | C69: 0.9986452283 | D69: 0.9988525901 | F69: 255 | G69: 255 | H69: 255
A70: 62 | B70: 0.9996180927 | C70: 0.9993977281 | D70: 0.9995352406 | F70: 255 | G70: 255 | H70: 255
A71: 63 | B71: 0.9999471212 | C71: 0.9998494093 | D71: 0.9999146252 | F71: 255 | G71: 255 | H71: 255
A72: 64 | B72: 0.9999750002 | C72: 1 | D72: 0.9999905137 | F72: 255 | G72: 256 | H72: 255
A73: 65 | B73: =$B$2*SIN(2*PI()/$B$4*$A73+$B$5)+$B$3 -> 0.999701713 | C73: =$C$2*SIN(2*PI()/$C$4*$A73+$C$5)+$C$3 -> 0.9998494093 | D73: =$D$2*SIN(2*PI()/$D$4*$A73+$D$5)+$D$3 -> 0.9997628599 | F73: =TRUNC(B73*256) -> 255 | G73: 255 | H73: 255
A74: 66 | B74: 0.9991274241 | C74: 0.9993977281 | D74: 0.999231802 | F74: 255 | G74: 255 | H74: 255
A75: 67 | B75: 0.9982524796 | C75: 0.9986452283 | D75: 0.9983976625 | F75: 255 | G75: 255 | H75: 255
A76: 68 | B76: 0.9970774064 | C76: 0.9975923633 | D76: 0.9972609477 | F76: 255 | G76: =TRUNC(C76*256) -> 255 | H76: =TRUNC(D76*256) -> 255
A77: 69 | B77: 0.9956029123 | C77: 0.9962397673 | D77: 0.9958223478 | F77: 254 | G77: 255 | H77: 254
A78: 70 | B78: 0.9938298856 | C78: 0.994588255 | D78: 0.994082736 | F78: 254 | G78: 254 | H78: 254
A79: 71 | B79: 0.9917593943 | C79: 0.9926388212 | D79: 0.9920431687 | F79: 253 | G79: 254 | H79: 253
A80: 72 | B80: 0.9893926854 | C80: 0.9903926402 | D80: 0.9897048838 | F80: 253 | G80: 253 | H80: 253
A81: 73 | B81: 0.9867311847 | C81: 0.987851065 | D81: 0.9870693011 | F81: 252 | G81: 252 | H81: 252
A82: 74 | B82: 0.9837764954 | C82: 0.9850156266 | D82: 0.9841380205 | F82: 251 | G82: 252 | H82: 251
A83: 75 | B83: 0.9805303971 | C83: 0.9818880329 | D83: 0.9809128216 | F83: 251 | G83: 251 | H83: 251
A84: 76 | B84: 0.9769948454 | C84: 0.9784701679 | D84: 0.9773956624 | F84: 250 | G84: 250 | H84: 250
A85: 77 | B85: 0.9731719697 | C85: 0.9747640903 | D85: 0.9735886783 | F85: 249 | G85: 249 | H85: 249
A86: 78 | B86: 0.969064073 | C86: 0.9707720326 | D86: 0.9694941803 | F86: 248 | G86: 248 | H86: 248
A87: 79 | B87: 0.9646736296 | C87: 0.9664963994 | D87: 0.9651146543 | F87: 246 | G87: 247 | H87: 247
A88: 80 | B88: 0.9600032842 | C88: 0.9619397663 | D88: 0.960452759 | F88: 245 | G88: 246 | H88: 245
A89: 81 | B89: 0.95505585 | C89: 0.9571048779 | D89: 0.9555113246 | F89: 244 | G89: 245 | H89: 244
A90: 82 | B90: 0.9498343072 | C90: 0.9519946466 | D90: 0.9502933512 | F90: 243 | G90: 243 | H90: 243
A91: 83 | B91: 0.944341801 | C91: 0.9466121506 | D91: 0.9448020064 | F91: 241 | G91: 242 | H91: 241
A92: 84 | B92: 0.9385816399 | C92: 0.9409606322 | D92: 0.939040624 | F92: 240 | G92: 240 | H92: 240
A93: 85 | B93: 0.9325572937 | C93: 0.9350434956 | D93: 0.9330127019 | F93: 238 | G93: 239 | H93: 238
A94: 86 | B94: 0.9262723911 | C94: 0.928864305 | D94: 0.9267218994 | F94: 237 | G94: 237 | H94: 237
A95: 87 | B95: 0.9197307179 | C95: 0.9224267826 | D95: 0.9201720358 | F95: 235 | G95: 236 | H95: 235
A96: 88 | B96: 0.9129362147 | C96: 0.9157348062 | D96: 0.9133670874 | F96: 233 | G96: 234 | H96: 233
A97: 89 | B97: 0.9058929742 | C97: 0.9087924066 | D97: 0.9063111855 | F97: 231 | G97: 232 | H97: 232
A98: 90 | B98: 0.8986052388 | C98: 0.9016037657 | D98: 0.8990086136 | F98: 230 | G98: 230 | H98: 230
A99: 91 | B99: 0.8910773986 | C99: 0.8941732138 | D99: 0.8914638052 | F99: 228 | G99: 228 | H99: 228
A100: 92 | B100: 0.883313988 | C100: 0.8865052267 | D100: 0.8836813407 | F100: 226 | G100: 226 | H100: 226
A101: 93 | B101: 0.8753196834 | C101: 0.8786044233 | D101: 0.8756659448 | F101: 224 | G101: 224 | H101: 224
A102: 94 | B102: 0.8670993002 | C102: 0.8704755627 | D102: 0.8674224835 | F102: 221 | G102: 222 | H102: 222
A103: 95 | B103: 0.8586577902 | C103: 0.8621235415 | D103: 0.8589559615 | F103: 219 | G103: 220 | H103: 219
A104: 96 | B104: 0.8500002381 | C104: 0.8535533906 | D104: 0.8502715188 | F104: 217 | G104: 218 | H104: 217
A105: 97 | B105: 0.8411318589 | C105: 0.8447702724 | D105: 0.8413744276 | F105: 215 | G105: 216 | H105: 215
A106: 98 | B106: 0.8320579947 | C106: 0.8357794774 | D106: 0.8322700894 | F106: 213 | G106: 213 | H106: 213
A107: 99 | B107: 0.8227841112 | C107: 0.8265864215 | D107: 0.8229640312 | F107: 210 | G107: 211 | H107: 210
A108: 100 | B108: 0.8133157945 | C108: 0.8171966421 | D108: 0.8134619029 | F108: 208 | G108: 209 | H108: 208
A109: 101 | B109: 0.8036587482 | C109: 0.8076157953 | D109: 0.8037694732 | F109: 205 | G109: 206 | H109: 205
A110: 102 | B110: 0.7938187892 | C110: 0.7978496522 | D110: 0.7938926261 | F110: 203 | G110: 204 | H110: 203
A111: 103 | B111: 0.7838018447 | C111: 0.7879040957 | D111: 0.7838373581 | F111: 200 | G111: 201 | H111: 200
A112: 104 | B112: 0.7736139486 | C112: 0.7777851165 | D112: 0.7736097735 | F112: 198 | G112: 199 | H112: 198
A113: 105 | B113: 0.7632612377 | C113: 0.7674988099 | D113: 0.7632160814 | F113: 195 | G113: 196 | H113: 195
A114: 106 | B114: 0.7527499481 | C114: 0.7570513721 | D114: 0.752662592 | F114: 192 | G114: 193 | H114: 192
A115: 107 | B115: 0.7420864113 | C115: 0.7464490961 | D115: 0.7419557121 | F115: 189 | G115: 191 | H115: 189
A116: 108 | B116: 0.7312770508 | C116: 0.7356983684 | D116: 0.7311019418 | F116: 187 | G116: 188 | H116: 187
A117: 109 | B117: 0.7203283776 | C117: 0.7248056648 | D117: 0.7201078704 | F117: 184 | G117: 185 | H117: 184
A118: 110 | B118: 0.7092469868 | C118: 0.7137775467 | D118: 0.7089801724 | F118: 181 | G118: 182 | H118: 181
A119: 111 | B119: 0.6980395535 | C119: 0.702620657 | D119: 0.6977256034 | F119: 178 | G119: 179 | H119: 178
A120: 112 | B120: 0.6867128285 | C120: 0.6913417162 | D120: 0.686350996 | F120: 175 | G120: 176 | H120: 175
A121: 113 | B121: 0.6752736347 | C121: 0.6799475183 | D121: 0.6748632556 | F121: 172 | G121: 174 | H121: 172
A122: 114 | B122: 0.6637288627 | C122: 0.6684449267 | D122: 0.6632693564 | F122: 169 | G122: 171 | H122: 169
A123: 115 | B123: 0.6520854664 | C123: 0.6568408702 | D123: 0.6515763371 | F123: 166 | G123: 168 | H123: 166
A124: 116 | B124: 0.6403504596 | C124: 0.6451423386 | D124: 0.6397912963 | F124: 163 | G124: 165 | H124: 163
A125: 117 | B125: 0.628530911 | C125: 0.6333563787 | D125: 0.6279213888 | F125: 160 | G125: 162 | H125: 160
A126: 118 | B126: 0.6166339401 | C126: 0.62149009 | D126: 0.6159738207 | F126: 157 | G126: 159 | H126: 157
A127: 119 | B127: 0.6046667133 | C127: 0.6095506201 | D127: 0.6039558454 | F127: 154 | G127: 156 | H127: 154
A128: 120 | B128: 0.5926364391 | C128: 0.597545161 | D128: 0.5918747589 | F128: 151 | G128: 152 | H128: 151
A129: 121 | B129: 0.5805503643 | C129: 0.5854809444 | D129: 0.5797378956 | F129: 148 | G129: 149 | H129: 148
A130: 122 | B130: 0.5684157689 | C130: 0.5733652372 | D130: 0.5675526237 | F130: 145 | G130: 146 | H130: 145
A131: 123 | B131: 0.5562399624 | C131: 0.5612053376 | D131: 0.5553263409 | F131: 142 | G131: 143 | H131: 142
A132: 124 | B132: 0.5440302791 | C132: 0.5490085702 | D132: 0.5430664697 | F132: 139 | G132: 140 | H132: 139
A133: 125 | B133: 0.5317940735 | C133: 0.5367822818 | D133: 0.5307804531 | F133: 136 | G133: 137 | H133: 135
A134: 126 | B134: 0.5195387164 | C134: 0.5245338372 | D134: 0.5184757497 | F134: 133 | G134: 134 | H134: 132
A135: 127 | B135: 0.50727159 | C135: 0.5122706143 | D135: 0.5061598298 | F135: 129 | G135: 131 | H135: 129
A136: 128 | B136: 0.4950000833 | C136: 0.5 | D136: 0.4938401702 | F136: 126 | G136: 128 | H136: 126
A137: 129 | B137: =$B$2*SIN(2*PI()/$B$4*$A137+$B$5)+$B$3 -> 0.4827315885 | C137: =$C$2*SIN(2*PI()/$C$4*$A137+$C$5)+$C$3 -> 0.4877293857 | D137: =$D$2*SIN(2*PI()/$D$4*$A137+$D$5)+$D$3 -> 0.4815242503 | F137: =TRUNC(B137*256) -> 123 | G137: 124 | H137: 123
A138: 130 | B138: 0.4704734955 | C138: 0.4754661628 | D138: 0.4692195469 | F138: 120 | G138: 121 | H138: 120
A139: 131 | B139: 0.4582331881 | C139: 0.4632177182 | D139: 0.4569335303 | F139: 117 | G139: 118 | H139: 116
A140: 132 | B140: 0.4460180395 | C140: 0.4509914298 | D140: 0.4446736591 | F140: 114 | G140: =TRUNC(C140*256) -> 115 | H140: =TRUNC(D140*256) -> 113
A141: 133 | B141: 0.4338354077 | C141: 0.4387946624 | D141: 0.4324473763 | F141: 111 | G141: 112 | H141: 110
A142: 134 | B142: 0.4216926309 | C142: 0.4266347628 | D142: 0.4202621044 | F142: 107 | G142: 109 | H142: 107
A143: 135 | B143: 0.4095970235 | C143: 0.4145190556 | D143: 0.4081252411 | F143: 104 | G143: 106 | H143: 104
A144: 136 | B144: 0.3975558715 | C144: 0.402454839 | D144: 0.3960441546 | F144: 101 | G144: 103 | H144: 101
A145: 137 | B145: 0.3855764281 | C145: 0.3904493799 | D145: 0.3840261793 | F145: 98 | G145: 99 | H145: 98
A146: 138 | B146: 0.3736659091 | C146: 0.37850991 | D146: 0.3720786112 | F146: 95 | G146: 96 | H146: 95
A147: 139 | B147: 0.361831489 | C147: 0.3666436213 | D147: 0.3602087037 | F147: 92 | G147: 93 | H147: 92
A148: 140 | B148: 0.3500802965 | C148: 0.3548576614 | D148: 0.3484236629 | F148: 89 | G148: 90 | H148: 89
A149: 141 | B149: 0.33841941 | C149: 0.3431591298 | D149: 0.3367306436 | F149: 86 | G149: 87 | H149: 86
A150: 142 | B150: 0.3268558536 | C150: 0.3315550733 | D150: 0.3251367444 | F150: 83 | G150: 84 | H150: 83
A151: 143 | B151: 0.3153965928 | C151: 0.3200524817 | D151: 0.313649004 | F151: 80 | G151: 81 | H151: 80
A152: 144 | B152: 0.3040485302 | C152: 0.3086582838 | D152: 0.3022743966 | F152: 77 | G152: 79 | H152: 77
A153: 145 | B153: 0.2928185014 | C153: 0.297379343 | D153: 0.2910198276 | F153: 74 | G153: 76 | H153: 74
A154: 146 | B154: 0.2817132709 | C154: 0.2862224533 | D154: 0.2798921296 | F154: 72 | G154: 73 | H154: 71
A155: 147 | B155: 0.2707395283 | C155: 0.2751943352 | D155: 0.2688980582 | F155: 69 | G155: 70 | H155: 68
A156: 148 | B156: 0.2599038836 | C156: 0.2643016316 | D156: 0.2580442879 | F156: 66 | G156: 67 | H156: 66
A157: 149 | B157: 0.2492128638 | C157: 0.2535509039 | D157: 0.247337408 | F157: 63 | G157: 64 | H157: 63
A158: 150 | B158: 0.2386729088 | C158: 0.2429486279 | D158: 0.2367839186 | F158: 61 | G158: 62 | H158: 60
A159: 151 | B159: 0.2282903675 | C159: 0.2325011901 | D159: 0.2263902265 | F159: 58 | G159: 59 | H159: 57
A160: 152 | B160: 0.2180714939 | C160: 0.2222148835 | D160: 0.2161626419 | F160: 55 | G160: 56 | H160: 55
A161: 153 | B161: 0.2080224434 | C161: 0.2120959043 | D161: 0.2061073739 | F161: 53 | G161: 54 | H161: 52
A162: 154 | B162: 0.1981492694 | C162: 0.2021503478 | D162: 0.1962305268 | F162: 50 | G162: 51 | H162: 50
A163: 155 | B163: 0.1884579189 | C163: 0.1923842047 | D163: 0.1865380971 | F163: 48 | G163: 49 | H163: 47
A164: 156 | B164: 0.1789542298 | C164: 0.1828033579 | D164: 0.1770359688 | F164: 45 | G164: 46 | H164: 45
A165: 157 | B165: 0.1696439266 | C165: 0.1734135785 | D165: 0.1677299106 | F165: 43 | G165: 44 | H165: 42
A166: 158 | B166: 0.1605326175 | C166: 0.1642205226 | D166: 0.1586255724 | F166: 41 | G166: 42 | H166: 40
A167: 159 | B167: 0.1516257909 | C167: 0.1552297276 | D167: 0.1497284812 | F167: 38 | G167: 39 | H167: 38
A168: 160 | B168: 0.1429288119 | C168: 0.1464466094 | D168: 0.1410440385 | F168: 36 | G168: 37 | H168: 36
A169: 161 | B169: 0.1344469193 | C169: 0.1378764585 | D169: 0.1325775165 | F169: 34 | G169: 35 | H169: 33
A170: 162 | B170: 0.1261852221 | C170: 0.1295244373 | D170: 0.1243340552 | F170: 32 | G170: 33 | H170: 31
A171: 163 | B171: 0.118148697 | C171: 0.1213955767 | D171: 0.1163186593 | F171: 30 | G171: 31 | H171: 29
A172: 164 | B172: 0.1103421849 | C172: 0.1134947733 | D172: 0.1085361948 | F172: 28 | G172: 29 | H172: 27
A173: 165 | B173: 0.102770388 | C173: 0.1058267862 | D173: 0.1009913864 | F173: 26 | G173: 27 | H173: 25
A174: 166 | B174: 0.0954378674 | C174: 0.09839623426 | D174: 0.09368881452 | F174: 24 | G174: 25 | H174: 23
A175: 167 | B175: 0.0883490399 | C175: 0.09120759342 | D175: 0.08663291259 | F175: 22 | G175: 23 | H175: 22
A176: 168 | B176: 0.08150817555 | C176: 0.08426519385 | D176: 0.07982796418 | F176: 20 | G176: 21 | H176: 20
A177: 169 | B177: 0.07491939502 | C177: 0.07757321738 | D177: 0.07327810056 | F177: 19 | G177: 19 | H177: 18
A178: 170 | B178: 0.06858666716 | C178: 0.071135695 | D178: 0.06698729811 | F178: 17 | G178: 18 | H178: 17
A179: 171 | B179: 0.06251380655 | C179: 0.06495650445 | D179: 0.06095937596 | F179: 16 | G179: 16 | H179: 15
A180: 172 | B180: 0.05670447127 | C180: 0.05903936783 | D180: 0.05519799363 | F180: 14 | G180: 15 | H180: 14
A181: 173 | B181: 0.05116216064 | C181: 0.0533878494 | D181: 0.04970664885 | F181: 13 | G181: 13 | H181: 12
A182: 174 | B182: 0.04589021314 | C182: 0.04800535344 | D182: 0.04448867538 | F182: 11 | G182: 12 | H182: 11
A183: 175 | B183: 0.0408918044 | C183: 0.04289512215 | D183: 0.03954724103 | F183: 10 | G183: 10 | H183: 10
A184: 176 | B184: 0.03616994527 | C184: 0.03806023374 | D184: 0.03488534573 | F184: 9 | G184: 9 | H184: 8
A185: 177 | B185: 0.03172748002 | C185: 0.03350360058 | D185: 0.03050581969 | F185: 8 | G185: 8 | H185: 7
A186: 178 | B186: 0.02756708462 | C186: 0.02922796741 | D186: 0.02641132172 | F186: 7 | G186: 7 | H186: 6
A187: 179 | B187: 0.02369126515 | C187: 0.0252359097 | D187: 0.02260433756 | F187: 6 | G187: 6 | H187: 5
A188: 180 | B188: 0.02010235625 | C188: 0.02152983213 | D188: 0.01908717841 | F188: 5 | G188: 5 | H188: 4
A189: 181 | B189: 0.01680251974 | C189: 0.0181119671 | D189: 0.01586197954 | F189: 4 | G189: 4 | H189: 4
A190: 182 | B190: 0.01379374333 | C190: 0.0149843734 | D190: 0.01293069895 | F190: 3 | G190: 3 | H190: 3
A191: 183 | B191: 0.01107783939 | C191: 0.01214893498 | D191: 0.0102951162 | F191: 2 | G191: 3 | H191: 2
A192: 184 | B192: 0.008656443873 | C192: 0.009607359798 | D192: 0.007956831349 | F192: 2 | G192: 2 | H192: 2
A193: 185 | B193: 0.006531015344 | C193: 0.007361178806 | D193: 0.005917263959 | F193: 1 | G193: 1 | H193: 1
A194: 186 | B194: 0.004702834079 | C194: 0.005411745018 | D194: 0.004177652245 | F194: 1 | G194: 1 | H194: 1
A195: 187 | B195: 0.003173001307 | C195: 0.003760232701 | D195: 0.002739052316 | F195: 0 | G195: 0 | H195: 0
A196: 188 | B196: 0.001942438541 | C196: 0.002407636664 | D196: 0.001602337541 | F196: 0 | G196: 0 | H196: 0
A197: 189 | B197: 0.001011887027 | C197: 0.001354771661 | D197: 0.0007681980163 | F197: 0 | G197: 0 | H197: 0
A198: 190 | B198: 0.0003819072931 | C198: 0.0006022718974 | D198: 0.0002371401433 | F198: 0 | G198: 0 | H198: 0
A199: 191 | B199: 5.287881657e-05 | C199: 0.0001505906519 | D199: 9.486325637e-06 | F199: 0 | G199: 0 | H199: 0
A200: 192 | B200: 2.499979167e-05 | C200: 0 | D200: 8.537477097e-05 | F200: 0 | G200: 0 | H200: 0
A201: 193 | B201: =$B$2*SIN(2*PI()/$B$4*$A201+$B$5)+$B$3 -> 0.0002982870116 | C201: =$C$2*SIN(2*PI()/$C$4*$A201+$C$5)+$C$3 -> 0.0001505906519 | D201: =$D$2*SIN(2*PI()/$D$4*$A201+$D$5)+$D$3 -> 0.0004647594078 | F201: =TRUNC(B201*256) -> 0 | G201: 0 | H201: 0
... 63 more rows
